Cogmind - Beta 14 @@@ ROGUE MODE // 2024.12.30 @ 00:24:28 Player: Venar246 Result: Destroyed by H-61 Shepherd with Heavy Assault Cannon Performance ------------- Evolutions (2) 1000 Regions Visited (3) 600 Robots Destroyed (81) 405 Value Destroyed (2026) 2026 Prototype IDs (6) 120 Alien Tech Used (0) 0 Bonus (212) 212 TOTAL SCORE: 4363 Bonus ------- High Alert Combat Kills 212 Cogmind --------- Core Integrity 0/550 Matter 123/300 Energy 100/100 System Corruption 0% Temperature Cool (0) Movement Core (400) Ox7 Location -8/Materials Parts ------- > --- POWER (1) -------- (None) > --- PROPULSION (3) --- (None) > --- UTILITY (5) ------ Large Storage Unit Transport Network Coupler Targeting Computer Target Analyzer > --- WEAPON (2) ------- Katana > --- INVENTORY (15) --- Improved Ion Engine Advanced Heat Sink Advanced Visual Processing Unit Melee Analysis Suite Flak Cannon Improved Grenade Launcher Improved Grenade Launcher Peak State ------------ > --- POWER ------------ Cooled Ion Engine > --- PROPULSION ------- Aluminum Leg Carbon-fiber Leg VSS Leg > --- UTILITY ---------- Large Storage Unit Transport Network Coupler Targeting Computer Targeting Computer Target Analyzer > --- WEAPON ----------- Minigun Minigun > --- INVENTORY -------- Improved Ion Engine Aluminum Leg Carbon-fiber Leg Carbon-fiber Leg Compact Wheel Advanced Heat Sink Advanced Visual Processing Unit Melee Analysis Suite Advanced Beam Cannon Minigun Minigun Minigun Flak Cannon Mini Grenade Launcher Maul [Rating: 27] Favorites ----------- Power Cooled Ion Engine Engine Cooled Ion Engine Power Core Light Nuclear Core Propulsion Aluminum Leg Treads Light Treads Leg Aluminum Leg Wheel Wheel Utility Targeting Computer Device Improved Heat Sink Storage Large Storage Unit Processor Targeting Computer Protection Light Armor Plating Weapon Minigun Energy Gun Medium Laser Energy Cannon Advanced Beam Cannon Ballistic Gun Minigun Launcher Grenade Launcher Slashing Weapon Katana Build | -11 -10 -9 -8 ------- Run | Yrd Mat Mat Mat Slots Evolved 4 | . . 2 2 Power . | . . . . Propulsion 1 | . . 1 . Utility 3 | . . 1 2 Weapon . | . . . . Parts Attached 76 | 7 5 31 33 Power 3 | 1 . 2 . Engine 2 | 1 . 1 . Core 1 | . . 1 . Reactor . | . . . . Propulsion 22 | 3 2 7 10 Treads 3 | . . 2 1 Leg 14 | 2 2 3 7 Wheel 5 | 1 . 2 2 Hover . | . . . . Flight . | . . . . Utility 18 | 1 3 9 5 Device 3 | . 1 1 1 Storage 3 | 1 . 2 . Processor 7 | . 2 2 3 Hackware . | . . . . Protection 5 | . . 4 1 Artifact . | . . . . Weapon 33 | 2 . 13 18 Energy Gun 3 | 1 . 2 . Energy Cannon 2 | . . 2 . Ballistic Gun 19 | 1 . 6 12 Ballistic Cannon . | . . . . Launcher 8 | . . 3 5 Special Weapon . | . . . . Impact Weapon . | . . . . Slashing Weapon 1 | . . . 1 Piercing Weapon . | . . . . Special Melee Weapon . | . . . . Unidentified Prototypes 2 | . . 2 . Parts Lost 24 | . 3 6 15 Power 3 | . 1 1 1 Propulsion 13 | . 2 3 8 Utility 4 | . . 2 2 Weapon 4 | . . . 4 Highest Loss Streak 7 | . 1 4 7 To Critical Strikes 1 | . . 1 . Average Slot Usage (%) 89 | . 93 83 93 Engine 7 | . 12 4 7 Core 1 | . . 4 . Treads 3 | . . 2 7 Leg 16 | . 25 11 16 Wheel 3 | . . 7 . Storage 10 | . 14 11 9 Processor 18 | . 9 11 30 Protection 4 | . . 7 4 Energy Gun 7 | . 14 9 . Energy Cannon 1 | . . 2 . Ballistic Gun 12 | . 14 8 15 Peak Build Rating 27 | 6 9 15 27 Average Rating 13 | 4 7 11 21 On Entrance 6 | . 6 7 14 Naked Turns . | . . . . Heaviest Build 42 | 10 11 37 42 Greatest Support 40 | 20 20 40 40 Greatest Overweight (x) 7 | . 3 7 7 Average Overweight (x) . | . . 1 . Largest Inventory Capacity 15 | 8 8 15 15 Average Capacity 11 | 6 8 10 15 Most Carried 15 | 4 8 10 15 Average Carried 9 | 1 7 8 13 Final Capacity 15 | 8 8 15 15 Final Carried 10 | 2 8 10 7 Class Distribution -------------------- 60% | Mutant 39% | Scavenger-Mutant Dominant Class ---------------- Mutant | -10/Materials Scavenger-Mutant | -9/Materials Mutant | -8/Materials Resources | -11 -10 -9 -8 ----------- Run | Yrd Mat Mat Mat Matter Collected 1495 | 184 157 456 698 Remotely . | . . . . Salvage Created 2677 | . 543 1265 869 Parts 160 | . 33 71 56 Haulers Intercepted 7 | . 1 4 2 Recyclers Shooed 5 | . 2 2 1 Parts Field Recycled . | . . . . Retrieved Matter . | . . . . Parts Self-Destructed . | . . . . Prevented . | . . . . Kills | -11 -10 -9 -8 ------- Run | Yrd Mat Mat Mat Combat Hostiles Destroyed 60 | . 12 27 21 Guns 40 | . 12 16 12 Cannons 5 | . . 5 . AOE 15 | . . 6 9 Classes Destroyed 11 | . 6 4 1 Worker 3 | . 1 2 . Builder 5 | . 1 1 3 Hauler 7 | . 1 4 2 Recycler 4 | . . 1 3 Operator 1 | . . 1 . Watcher 1 | . 1 . . Swarmer 18 | . 3 8 7 Grunt 29 | . 9 10 10 Brawler 3 | . . 2 1 Duelist 1 | . . . 1 Sentry 9 | . . 7 2 Best Kill Streak 11 | . 5 8 11 Combat Bots Only 9 | . 4 7 9 Max Kills in Single Turn 3 | . 2 3 3 Gunslinging . | . . . . Exploded 3 | . . 3 3 Melee . | . . . . Uniques/NPCs Destroyed . | . . . . Combat | -11 -10 -9 -8 -------- Run | Yrd Mat Mat Mat Hostile Shots Fired 271 | . 60 109 102 Missed 70 | . 15 31 24 Damage Taken 3503 | . 484 964 2055 Core 925 | . 105 225 595 Absorbed by Shields . | . . . . Core Remaining (%) 67 | 100 58 43 . Volleys Fired 217 | . 45 98 74 Largest 2 | . 2 2 2 Hottest 100 | . 60 100 61 Shots Fired 361 | . 90 151 120 Gun 330 | . 90 128 112 Cannon 20 | . . 20 . Launcher 11 | . . 3 8 Special . | . . . . Kinetic 220 | . 45 63 112 Thermal 130 | . 45 85 . Explosive 11 | . . 3 8 Electromagnetic . | . . . . Robot Hit Streak 11 | . 9 11 7 Robot Miss Streak 8 | . 4 8 3 Penetration Max . | . . . . Secondary Targets 3 | . 2 1 . Max Gunslinging Chain 1 | . 1 1 . Shots Hit Robots 230 | . 57 89 84 Core Hits 137 | . 33 51 53 Critical Kills 1 | . . . 1 Critical Parts Destroyed . | . . . . Critical Strikes 3 | . . 1 2 Burn 1 | . . 1 . Destroy 2 | . . . 2 Melee Attacks 8 | . . . 8 Impact . | . . . . Slashing 8 | . . . 8 Piercing . | . . . . Sneak Attacks . | . . . . Combat Hostiles . | . . . . Follow-up Attacks . | . . . . Damage Inflicted 5340 | 1 604 1968 2767 Guns 3020 | . 592 1102 1326 Cannons 264 | . . 264 . Explosions 1925 | . . 576 1349 Melee 89 | . . . 89 Ramming 42 | 1 12 26 3 Kinetic 2219 | . 254 639 1326 Thermal 1065 | . 338 727 . Explosive 1925 | . . 576 1349 Electromagnetic . | . . . . Impact . | . . . . Slashing 89 | . . . 89 Piercing . | . . . . Highest Corruption 6 | . . 6 . Average Corruption 4 | . . 4 . Corruption Purged . | . . . . Corruption Blocked . | . . . . Effects 27 | . . 27 . Message Errors 4 | . . 4 . Matter Fused 4 | . . 4 . Heat Flow Errors 3 | . . 3 . Energy Discharges 1 | . . 1 . Parts Rejected 4 | . . 4 . Data Loss (minor) 6 | . . 6 . Data Loss (major) 1 | . . 1 . Alerts 1 | . . 1 . Weapon Failures 3 | . . 3 . Overload Shots . | . . . . Overflow Damage 94 | . . 31 63 Projectiles 1 | . . 1 . Explosions 93 | . . 30 63 Melee . | . . . . Knockbacks . | . . . . Impact . | . . . . Kinetic . | . . . . Secondary . | . . . . Self-Inflicted Damage 68 | . . 12 56 Shots 2 | . . . 2 Rammed 3 | . 1 2 . Targets Rammed 12 | 1 7 3 1 Kicked 9 | 1 6 1 1 Crushed . | . . . . Highest Temperature 385 | . 76 385 24 Average Temperature 98 | . 30 134 10 Received Heat Transfer 774 | . 201 330 243 Effects 7 | . . 7 . Shutdowns 2 | . . 2 . Energy Bleed 1 | . . 1 . Interference 3 | . . 3 . Short Circuit 1 | . . 1 . Siege Activations . | . . . . Robots Corrupted . | . . . . Combat Hostiles . | . . . . Parts Fried . | . . . . Impact Corruptions . | . . . . Robots Melted . | . . . . Combat Hostiles . | . . . . Parts Melted 6 | . 2 4 . Heat Transferred 2675 | . 775 1900 . Parts Sabotaged . | . . . . Parts Stolen . | . . . . Parts Stripped . | . . . . Power Chain Reactions . | . . . . Alert | -11 -10 -9 -8 ------- Run | Yrd Mat Mat Mat Peak Influence 683 | . 319 683 674 Initial 287 | . . 66 287 Average 304 | . 123 322 429 Maximum Alert Level 2 | . 1 2 2 Low Security (%) 33 | 100 82 29 . Level 1 37 | . 17 44 47 Level 2 28 | . . 26 52 Level 3 . | . . . . Level 4 . | . . . . Level 5 . | . . . . High Security . | . . . . Max Security . | . . . . Squads Dispatched 8 | . 2 2 4 Investigation 1 | . 1 . . Extermination . | . . . . Reinforcement 4 | . 1 2 1 Assault . | . . . . Garrison 3 | . . . 3 Intercept . | . . . . Searches Triggered . | . . . . Construction Impeded . | . . . . Haulers Reinforced . | . . . . Active Scanning Responses . | . . . . Cargo Convoy Interrupts . | . . . . Stealth | -11 -10 -9 -8 --------- Run | Yrd Mat Mat Mat Distress Signals 11 | . 3 5 3 Communications Jammed . | . . . . Distress Signals . | . . . . Times Spotted 104 | . 19 50 35 Peak Tracking Total 8 | . 5 8 7 Tactical Retreats 8 | . 3 4 1 Traps | -11 -10 -9 -8 ------- Run | Yrd Mat Mat Mat Traps Triggered 4 | . 1 . 3 Indirectly . | . . . . Trap Hack Attempts . | . . . . Triggered . | . . . . Disarmed . | . . . . Reprogrammed . | . . . . Reused . | . . . . Traps Extracted . | . . . . Installed . | . . . . Triggered . | . . . . Machines | -11 -10 -9 -8 ---------- Run | Yrd Mat Mat Mat Machines Disabled 3 | . . 1 2 Max in Single Turn 1 | . . 1 1 Machines Repaired . | . . . . Machines Dismantled . | . . . . Machines Sabotaged . | . . . . Overloaded Fab Kills . | . . . . Hacking | -11 -10 -9 -8 --------- Run | Yrd Mat Mat Mat Machines Accessed 4 | . 1 2 1 Terminals 4 | . 1 2 1 Fabricators . | . . . . Repair Stations . | . . . . Recycling Units . | . . . . Scanalyzers . | . . . . Garrison Access . | . . . . Total Hacks 11 | . 3 7 1 Successful 4 | . 1 2 1 Failed 7 | . 2 5 . Catastrophic 1 | . . 1 . Database Lockouts . | . . . . Manual 11 | . 3 7 1 Terminals 11 | . 3 7 1 Fabricators . | . . . . Repair Stations . | . . . . Recycling Units . | . . . . Scanalyzers . | . . . . Garrison Access . | . . . . Terminal Hacks 4 | . 1 2 1 Prototype ID Bank 2 | . 1 1 . Hauler Manifests 2 | . . 1 1 Fabricator Hacks . | . . . . Repair Station Hacks . | . . . . Recycling Unit Hacks . | . . . . Scanalyzer . | . . . . Garrison Access Hacks . | . . . . Unauthorized Hacks . | . . . . Terminals . | . . . . Fabricators . | . . . . Repair Stations . | . . . . Recycling Units . | . . . . Scanalyzers . | . . . . Garrison Access . | . . . . Data Cores Recovered . | . . . . Used . | . . . . Hacking Detections 3 | . 1 2 . Full Trace Events . | . . . . Feedback Events . | . . . . Feedback Blocked . | . . . . Robot Schematics Acquired . | . . . . Robots Built . | . . . . Authchips . | . . . . Time . | . . . . Total Robot Build Rating . | . . . . Part Schematics Acquired . | . . . . Parts Built . | . . . . Authchips . | . . . . Time . | . . . . Total Part Build Rating . | . . . . Parts Repaired . | . . . . Time . | . . . . Parts Recycled . | . . . . Recycled Matter . | . . . . Retrieved Matter . | . . . . Retrieved Components . | . . . . Parts Scanalyzed . | . . . . Part Schematics Acquired . | . . . . Parts Damaged . | . . . . Bothacking | -11 -10 -9 -8 ------------ Run | Yrd Mat Mat Mat Used RIF Installer . | . . . . Robots Hacked . | . . . . Non-combat . | . . . . Combat . | . . . . Robot Hacks Applied . | . . . . Relay Couplers Released . | . . . . Fabnet Peak Effective % . | . . . . Robots Rewired . | . . . . Allies Hacked . | . . . . Hacks Repelled . | . . . . Allies | -11 -10 -9 -8 -------- Run | Yrd Mat Mat Mat Total Allies . | . . . . Largest Group . | . . . . Highest-Rated Group . | . . . . Highest-Rated Ally . | . . . . Total Orders . | . . . . Ally Attacks . | . . . . Total Damage . | . . . . Kills . | . . . . Allies Corrupted . | . . . . Allies Melted . | . . . . Intel | -11 -10 -9 -8 ------- Run | Yrd Mat Mat Mat Robot Analysis Total . | . . . . Derelict Logs Recovered . | . . . . Drone Launches . | . . . . Drone Recoveries . | . . . . Exploration | -11 -10 -9 -8 ------------- Run | Yrd Mat Mat Mat Turns Passed 2835 | 106 612 1128 989 Spaces Moved 1322 | 80 218 510 514 Core 95 | 5 9 73 8 Treads 254 | . . 70 184 Legs 762 | 70 209 172 311 Wheels 211 | 5 . 195 11 Hover . | . . . . Flight . | . . . . Fastest Speed 50 | 50 120 80 110 Average Speed 141 | 114 123 155 139 Slowest Speed 400 | 120 200 400 400 Overloaded Moves . | . . . . Propulsion Burnouts . | . . . . Robots Hopped . | . . . . Cave-ins Triggered . | . . . . Exploration Rate (%) 33 | 4 38 48 45 Regions Visited 3 Branch Regions . Pre-discovered Areas . | . . . . Known Exits Taken 1 | . 1 . . Unknown Exits Taken 2 | 1 . 1 . Scrap Searched . | . . . . Spaces Dug . | . . . . Terrain Destroyed 90 | . . 25 65 Melee . | . . . . Projectile 1 | . . . 1 AOE 89 | . . 25 64 Terrain Rammed . | . . . . Walls Destroyed . | . . . . Machines Disabled . | . . . . Actions | -11 -10 -9 -8 --------- Run | Yrd Mat Mat Mat Total 1935 | 92 478 690 675 Wait 210 | . 190 14 6 Move 1319 | 79 217 509 514 Hop . | . . . . Pick Up 52 | 4 10 18 20 Fast Attach 28 | 5 3 11 9 Attach 30 | 2 2 12 14 Detach 3 | . . 1 2 Swap 18 | . . 8 10 Drop 38 | 1 4 16 17 Fire 217 | . 45 98 74 Melee 8 | . . . 8 Ram 3 | . 1 2 . Kick 9 | 1 6 1 1 Crush . | . . . . Escape Stasis . | . . . . Rewire . | . . . . Trap . | . . . . Miscellaneous . | . . . . Route ------- -11/Scrapyard -10/Materials -9/Materials (discovered 3 exits: *Mat / [*Min x2]) -8/Materials History --------- Turn | Location | Event 5 | -11/Scrapyard | Discovered new exit (range 15) 107 | -11/Scrapyard | Entered Materials 306 | -10/Materials | Discovered new exit (range 9) 314 | -10/Materials | Build established: Mutant 376 | -10/Materials | Identified exit to Materials 719 | -10/Materials | Entered another Materials area 719 | -9/Materials | Evolved 2 slots: Propulsion x1, Utility x1 840 | -9/Materials | Discovered new exit (range 9) 931 | -9/Materials | Discovered new exit (range 16) 1035 | -9/Materials | Lost 4 parts (3n1u) 1594 | -9/Materials | Core integrity fell below 50% 1654 | -9/Materials | Destroyed 7 combat bots 1658 | -9/Materials | Build established: Scavenger-Mutant 1809 | -9/Materials | Discovered new exit (range 16) 1847 | -9/Materials | Entered another Materials area 1847 | -8/Materials | Evolved 2 slots: Utility x2 2480 | -8/Materials | Garrison activated, responded to threat 2526 | -8/Materials | Build established: Mutant 2538 | -8/Materials | Destroyed 9 combat bots 2724 | -8/Materials | Core integrity fell below 50% 2756 | -8/Materials | Lost 7 parts (1p3n3w) 2799 | -8/Materials | Core integrity fell below 20% 2836 | -8/Materials | Destroyed by H-61 Shepherd with Heavy Assault Cannon Last Messages --------------- 02806_ U-05 Engineer builds a Wall. 02808_ K-01 Serf collects debris. 02810_ Wheel destroyed. 02810_ Knocked back. 02811_ K-01 Serf collects debris. 02811_ U-05 Engineer lays Concrete. 02813_ U-05 Engineer builds a Wall. 02813_ M-13 Machinist repairs H-61 Shepherd. 02814_ K-01 Serf collects debris. 02815_ Carbon-fiber Leg destroyed. 02815_ Targeting Computer destroyed. 02815_ Critical hit (Blast). 02815_ Knocked back. 02817_ U-05 Engineer lays Concrete. 02820_ U-05 Engineer builds a Wall. 02820_ Penetrated by Slug. 02820_ Knocked back. 02824_ U-05 Engineer lays Concrete. 02830_ U-05 Engineer builds a Wall. 02831_ Knocked back. Map ----- +----------------------------------------------------+ | | | ?????????????????????????????????????????????????? | | ?????????????????????????????????????????????????? | | ?????????????????????????????????????????????????? | | ?????????????????????????????????????????????????? | | ?????????????????????????????????????????????????? | | ?????????????????????????????????????????????????? | | ?????????????????????????????????????????????????? | | ?????????????????????????????????????????????????? | | ?????????????????????????????????????????????????? | | ?????????????????????????????????????????????????? | | ????????????????????????????#????????????????????? | | ??????????????????????????? ????????????????????? | | ??????????????????????????? "????????????????????? | | ??????????????????????????? "????????????????????? | | ??????????####????????????? "????????????????????? | | ??????????# T ????????????? ???????????????????? | | ??????????# ???????????? """ #????????????????? | | ??????????# ???????????? """ +????????????????? | | ??????????# "??????????? """ #????????????????? | | ?########?# "??????????? ??????????????????? | | ?/ ?? ???####???? # #? ##???????????? | | # #+##+####;#;########## #???????????# | | # # % % %| % % w #???????????# | | # ; % ==[ =* % + ??????????# | | ???"" """ # = !!! @H%m #???????????? | | ??????????####a###;;;;#;# #### #???????????? | | ???????????# # %%%# ####?????????????? | | ???????????# # """ ########????????????????? | | ???????????# # " #???????????????????????? | | ???????????# # #???????????????????????? | | ???????????# ! # #???????????????????????? | | ???????????# # !#??????????????????###### | | ???????????#a#####"#########????????????????# | | ???????????# #???##???# #????????????????# | | ???????????# #????????# #????????????????# "" | | ???????????# #????????# #????????????????# "" | | ???????????# #????????# #?????#########??# "" | | ?????????### ###??????# #?????#% ## ?? | | #######+## #??????# #?????# " # ###+## | | != ######## #?????# "G" + T | | ! [ ! #[ #?????#] " " # ## | | ! ###### # ??????# #????# | | ########## #????#=##+####????# [!#??### | | ?????????#######????#= +????###+##/#??# | | ????????????????????# #??????# = ###### | | ?????????????????####^ ######## / | | ?????????? ^ a / | | ????????????######################## T | | ???????????????????????????????????# % | +----------------------------------------------------+ Best States ------------- Heat Dissipation 50 Energy Generation 14 Energy Capacity 280 Matter Stores 300 Matter Capacity 300 Sight Range 18 Terrain Scan Density 10 ECM Strength 1 Armor Coverage 300 Evasion (%) 55 Targeting Accuracy 10 Target Analysis 5 Recoil Reduction 2 Item Schematics ----------------- None Robot Schematics ------------------ None Fabricated ------------ Nothing Alien Tech Used ----------------- None Achievements -------------- None Challenges ------------ None Game ------ Seed RainbowLongswordBoregun Manual? 0 Play Time 00:28:34 Cumulative 34.4 hours Start 2024.12.28 @ 00:40:57 End 2024.12.30 @ 00:24:28 Sessions 5 Manual Loads 0 Difficulty Rogue Special Mode None Game No. 67 Rogue 67 Adventurer 0 Explorer 0 Win Type - Total 1 Types 1/0/0/0/0/0/0/0/0 Lore% 18 Gallery% 34 Achievement% 31 Wizard Run 0 Options --------- Layout 1 ASCII 0 Keyboard 0 Movement Arrows Keybinds 0 Fullscreen 1 Font 32/SmallcapsGlow Map View 50x35 Zoom Use 0% Tactical HUD 1 Map Filters NONE Filters NONE Steam 1 RUN: 839e3e1d-95e9-4646-9564-df7b074ceb48